Cogmind - Beta 15 @@@ ROGUE MODE // 2025.05.08 @ 19:57:23 Player: NuclearMayhem Result: Destroyed by S4-29N(R) with Subdweller Laser Performance ------------- Evolutions (0) 0 Regions Visited (2) 400 Robots Destroyed (14) 70 Value Destroyed (470) 470 Prototype IDs (0) 0 Alien Tech Used (0) 0 Bonus (0) 0 TOTAL SCORE: 940 Bonus ------- None Cogmind --------- Core Integrity 0/250 Matter 3/300 Energy 100/100 System Corruption 2% Temperature Cool (6) Movement Rolling (130) Ox2 Location -10/Subcaves Parts ------- > --- POWER (1) -------- (None) > --- PROPULSION (2) --- Subdweller Monowheel > --- UTILITY (2) ------ Disposable Heat Sink High-capacity Storage Unit > --- WEAPON (2) ------- Light Cannon > --- INVENTORY (20) --- Subdweller Power Source Subdweller Power Source Subdweller Monowheel Subdweller Monowheel Disposable Heat Sink Structural Scanner Subdweller Optics Scrap Shield Heavy Battle Rifle Battle Cannon Grenade Launcher Peak State ------------ > --- POWER ------------ Subdweller Power Source > --- PROPULSION ------- Aluminum Leg Aluminum Leg > --- UTILITY ---------- Small Storage Unit Targeting Computer > --- WEAPON ----------- Riot Gun Slug Cannon > --- INVENTORY -------- Subdweller Power Source Subdweller Power Source Subdweller Monowheel Subdweller Monowheel Disposable Heat Sink Subdweller Optics Assault Rifle Grenade Launcher [Rating: 14] Favorites ----------- Power Subdweller Power Source Engine Subdweller Power Source Propulsion Aluminum Leg Leg Aluminum Leg Wheel Subdweller Monowheel Utility Small Storage Unit Device Disposable Heat Sink Storage Small Storage Unit Processor Targeting Computer Weapon Assault Rifle Energy Gun Riot Gun Energy Cannon Subdweller Beam Cannon Ballistic Gun Assault Rifle Ballistic Cannon Slug Cannon Launcher Grenade Launcher Build | -11 -10 -10 ------- Run | Yrd Mat Sub Slots Evolved . | . . . Power . | . . . Propulsion . | . . . Utility . | . . . Weapon . | . . . Parts Attached 18 | 6 1 11 Power 2 | 1 . 1 Engine 2 | 1 . 1 Core . | . . . Reactor . | . . . Propulsion 4 | 2 . 2 Treads . | . . . Leg 2 | 2 . . Wheel 2 | . . 2 Hover . | . . . Flight . | . . . Utility 4 | 1 1 2 Device 1 | . . 1 Storage 2 | 1 . 1 Processor 1 | . 1 . Hackware . | . . . Protection . | . . . Artifact . | . . . Weapon 8 | 2 . 6 Energy Gun 1 | . . 1 Energy Cannon 1 | . . 1 Ballistic Gun 3 | 2 . 1 Ballistic Cannon 2 | . . 2 Launcher 1 | . . 1 Special Weapon . | . . . Impact Weapon . | . . . Slashing Weapon . | . . . Piercing Weapon . | . . . Special Melee Weapon . | . . . Unidentified Prototypes . | . . . Parts Lost 7 | . . 7 Power 1 | . . 1 Propulsion 3 | . . 3 Utility . | . . . Weapon 3 | . . 3 Highest Loss Streak 3 | . . 3 To Critical Strikes . | . . . Average Backups 8 | 3 7 8 Power 1 | . 1 1 Propulsion 2 | 2 4 2 Utility 2 | . . 2 Weapon 1 | . 1 1 Tool/Special . | . . . Unused Backups 18 | . . 18 Power 4 | . . 4 Propulsion 6 | . . 6 Utility 5 | . . 5 Weapon 3 | . . 3 Tool/Special . | . . . Average Slot Usage (%) 89 | . 98 87 Engine 9 | . 14 9 Leg 16 | . 28 14 Wheel 7 | . . 8 Device 5 | . . 6 Storage 14 | . 14 14 Processor 7 | . 12 7 Energy Cannon 1 | . . 2 Ballistic Gun 15 | . 28 12 Ballistic Cannon 9 | . . 10 Peak Build Rating 14 | 6 7 14 Average Rating 10 | 4 6 10 On Entrance 4 | . 6 7 Naked Turns . | . . . Heaviest Build 56 | 14 14 56 Greatest Support 40 | 20 20 40 Greatest Overweight (x) 2 | . . 2 Average Overweight (x) 1 | . . 1 Largest Inventory Capacity 20 | 8 8 20 Average Capacity 12 | 6 8 13 Most Carried 12 | 6 8 12 Average Carried 8 | 3 7 8 Final Capacity 20 | 8 8 20 Final Carried 12 | 6 8 12 Class Distribution -------------------- 87% | Mutant 12% | Scavenger-Mutant Dominant Class ---------------- Mutant | -10/Materials Mutant | -10/Subcaves Resources | -11 -10 -10 ----------- Run | Yrd Mat Sub Matter Collected 721 | 259 42 420 Remotely . | . . . Salvage Created 435 | . 42 393 Parts 34 | . 5 29 Haulers Intercepted . | . . . Recyclers Shooed . | . . . Parts Field Recycled . | . . . Retrieved Matter . | . . . Parts Self-Destructed . | . . . Prevented . | . . . Kills | -11 -10 -10 ------- Run | Yrd Mat Sub Combat Hostiles Destroyed 14 | . 3 11 Guns 9 | . 3 6 Cannons 2 | . . 2 AOE 3 | . . 3 Classes Destroyed 3 | . 1 2 Swarmer 3 | . 3 . Artisan 2 | . . 2 Subdweller 11 | . . 11 Best Kill Streak 2 | . 2 2 Combat Bots Only 2 | . 2 2 Max Kills in Single Turn 1 | . 1 1 Gunslinging . | . . . Exploded 1 | . . 1 Melee . | . . . Uniques/NPCs Destroyed . | . . . Combat | -11 -10 -10 -------- Run | Yrd Mat Sub Hostile Shots Fired 70 | . 9 61 Missed 19 | . 2 17 Hits 51 | . 7 44 Projectile 51 | . 7 44 Critical Strikes 1 | . . 1 Damage Taken 1170 | . 54 1116 Core 266 | . . 266 Absorbed by Shields . | . . . Core Remaining (%) 100 | 100 . . Volleys Fired 91 | . 8 83 Largest 2 | . 2 2 Hottest 100 | . 40 100 Shots Fired 172 | . 16 156 Gun 99 | . 16 83 Cannon 69 | . . 69 Launcher 4 | . . 4 Special . | . . . Kinetic 152 | . 16 136 Thermal 9 | . . 9 Explosive 4 | . . 4 Electromagnetic 7 | . . 7 Robot Hit Streak 17 | . 2 17 Robot Miss Streak 3 | . 3 3 Penetration Max . | . . . Secondary Targets . | . . . Shots Hit Robots 80 | . 7 73 Core Hits 25 | . 3 22 Critical Kills . | . . . Critical Parts Destroyed 2 | . 1 1 Critical Strikes 4 | . 1 3 Destroy 4 | . 1 3 Melee Attacks . | . . . Impact . | . . . Slashing . | . . . Piercing . | . . . Sneak Attacks . | . . . Combat Hostiles . | . . . Follow-up Attacks . | . . . Damage Inflicted 1371 | . 84 1287 Guns 734 | . 84 650 Cannons 413 | . . 413 Explosions 221 | . . 221 Melee . | . . . Ramming 3 | . . 3 Kinetic 958 | . 84 874 Thermal 114 | . . 114 Explosive 221 | . . 221 Electromagnetic 75 | . . 75 Impact . | . . . Slashing . | . . . Piercing . | . . . Highest Corruption 2 | . 2 2 Average Corruption 2 | . 2 2 Corruption Purged . | . . . Corruption Blocked . | . . . Effects 20 | . . 20 Message Errors 3 | . . 3 Matter Fused 6 | . . 6 Heat Flow Errors 4 | . . 4 Energy Discharges 4 | . . 4 Parts Fused 1 | . . 1 Data Loss (minor) 1 | . . 1 Misfires 1 | . . 1 Overload Shots . | . . . Overflow Damage . | . . . Projectiles . | . . . Explosions . | . . . Melee . | . . . Knockbacks 3 | . . 3 Impact . | . . . Kinetic 3 | . . 3 Secondary . | . . . Self-Inflicted Damage 108 | . . 108 Shots 4 | . . 4 Rammed 1 | . . 1 Targets Rammed 1 | . . 1 Kicked . | . . . Crushed . | . . . Highest Temperature 157 | . . 157 Average Temperature 65 | . . 65 Received Heat Transfer 180 | . . 180 Siege Activations . | . . . Martial Activations . | . . . Shielding Activations . | . . . Robots Disrupted . | . . . Combat Hostiles . | . . . Robots Corrupted . | . . . Combat Hostiles . | . . . Parts Fried 2 | . . 2 Impact Corruptions . | . . . Robots Melted . | . . . Combat Hostiles . | . . . Parts Melted 1 | . . 1 Heat Transferred 148 | . . 148 Parts Sabotaged . | . . . Parts Stolen . | . . . Parts Stripped . | . . . Power Chain Reactions . | . . . Alert | -11 -10 -10 ------- Run | Yrd Mat Sub Maximum Alert Level . | . . . Low Security (%) 100 | 100 100 . Level 1 . | . . . Level 2 . | . . . Level 3 . | . . . Level 4 . | . . . Level 5 . | . . . High Security . | . . . Max Security . | . . . Peak Influence 66 | . 66 . Initial . | . . . Average 16 | . 20 . Influence Increases 92 | . 92 . Destroy 0b10 Robot/C 60 | . 60 . Destroy Leader 10 | . 10 . Successful Hack 6 | . 6 . Destroy Structure 1 | . 1 . Lose Combat Pursuer 15 | . 15 . Influence Decreases 92 | . 56 36 Entered New Map 18 | . . 18 Time Decay 74 | . 56 18 Squads Dispatched . | . . . Investigation . | . . . Extermination . | . . . Reinforcement . | . . . Assault . | . . . Garrison . | . . . Intercept . | . . . Searches Triggered . | . . . Construction Impeded . | . . . Haulers Reinforced . | . . . Active Scanning Responses . | . . . Cargo Convoy Interrupts . | . . . Stealth | -11 -10 -10 --------- Run | Yrd Mat Sub Distress Signals . | . . . Communications Jammed . | . . . Distress Signals . | . . . Times Spotted 17 | . 4 13 Peak Tracking Total 3 | . 3 2 Tactical Retreats 1 | . 1 . Traps | -11 -10 -10 ------- Run | Yrd Mat Sub Traps Triggered 1 | . 1 . Indirectly . | . . . Trap Hack Attempts . | . . . Triggered . | . . . Disarmed . | . . . Reprogrammed . | . . . Reused . | . . . Traps Extracted . | . . . Installed . | . . . Triggered . | . . . Machines | -11 -10 -10 ---------- Run | Yrd Mat Sub Machines Disabled . | . . . Max in Single Turn . | . . . Machines Repaired . | . . . Machines Dismantled . | . . . Machines Sabotaged . | . . . Overloaded Fab Kills . | . . . Hacking | -11 -10 -10 --------- Run | Yrd Mat Sub Machines Accessed 3 | . 3 . Terminals 3 | . 3 . Fabricators . | . . . Repair Stations . | . . . Recycling Units . | . . . Scanalyzers . | . . . Garrison Access . | . . . Total Hacks 7 | . 7 . Successful 1 | . 1 . Failed 6 | . 6 . Catastrophic 1 | . 1 . Database Lockouts . | . . . Manual 6 | . 6 . Terminals 7 | . 7 . Fabricators . | . . . Repair Stations . | . . . Recycling Units . | . . . Scanalyzers . | . . . Garrison Access . | . . . Terminal Hacks 1 | . 1 . Zone Layout 1 | . 1 . Fabricator Hacks . | . . . Repair Station Hacks . | . . . Recycling Unit Hacks . | . . . Scanalyzer . | . . . Garrison Access Hacks . | . . . Unauthorized Hacks . | . . . Terminals . | . . . Fabricators . | . . . Repair Stations . | . . . Recycling Units . | . . . Scanalyzers . | . . . Garrison Access . | . . . Data Cores Recovered . | . . . Used . | . . . Hacking Detections 3 | . 3 . Full Trace Events . | . . . Feedback Events . | . . . Feedback Blocked . | . . . Robot Schematics Acquired . | . . . Robots Built . | . . . Authchips . | . . . Time . | . . . Total Robot Build Rating . | . . . Part Schematics Acquired . | . . . Parts Built . | . . . Authchips . | . . . Time . | . . . Total Part Build Rating . | . . . Parts Repaired . | . . . Time . | . . . Parts Recycled . | . . . Recycled Matter . | . . . Retrieved Matter . | . . . Retrieved Components . | . . . Parts Scanalyzed . | . . . Part Schematics Acquired . | . . . Parts Damaged . | . . . Bothacking | -11 -10 -10 ------------ Run | Yrd Mat Sub Used RIF Installer . | . . . Robots Hacked . | . . . Non-combat . | . . . Combat . | . . . Robot Hacks Applied . | . . . Relay Couplers Released . | . . . Fabnet Peak Effective % . | . . . Robots Rewired . | . . . Allies Hacked . | . . . Hacks Repelled . | . . . Allies | -11 -10 -10 -------- Run | Yrd Mat Sub Total Allies . | . . . Largest Group . | . . . Highest-Rated Group . | . . . Highest-Rated Ally . | . . . Total Orders . | . . . Ally Attacks . | . . . Total Damage . | . . . Kills . | . . . Allies Corrupted . | . . . Allies Melted . | . . . Intel | -11 -10 -10 ------- Run | Yrd Mat Sub Active Infowar (turns) . | . . . Robot Analysis Total . | . . . Derelict Logs Recovered 1 | . . 1 Drone Launches . | . . . Drone Recoveries . | . . . Exploration | -11 -10 -10 ------------- Run | Yrd Mat Sub Turns Passed 1758 | 60 257 1441 Spaces Moved 1011 | 39 186 786 Core 3 | 3 . . Treads . | . . . Legs 516 | 36 186 294 Wheels 492 | . . 492 Hover . | . . . Flight . | . . . Fastest Speed 50 | 50 120 120 Average Speed 140 | 114 120 147 Slowest Speed 190 | 120 120 190 Overloaded Moves . | . . . Propulsion Burnouts . | . . . Robots Hopped . | . . . Potential Cave-ins . | . . . Cave-ins Triggered . | . . . Exploration Rate (%) 35 | 4 45 57 Regions Visited 2 Branch Regions 1 Pre-discovered Areas 1 | . . 1 Known Exits Taken . | . . . Unknown Exits Taken 2 | 1 1 . Scrap Searched 4 | . . 4 Spaces Dug . | . . . Terrain Destroyed 17 | . . 17 Melee . | . . . Projectile 7 | . . 7 AOE 10 | . . 10 Terrain Rammed . | . . . Walls Destroyed . | . . . Machines Disabled . | . . . Actions | -11 -10 -10 --------- Run | Yrd Mat Sub Total 1176 | 52 203 921 Wait 10 | . 7 3 Move 1009 | 38 185 786 Hop . | . . . Pick Up 26 | 8 2 16 Fast Attach 12 | 4 1 7 Attach 7 | 2 . 5 Detach 2 | . . 2 Swap 1 | . . 1 Drop 17 | . . 17 Fire 91 | . 8 83 Melee . | . . . Ram 1 | . . 1 Kick . | . . . Crush . | . . . Escape Stasis . | . . . Rewire . | . . . Trap . | . . . Miscellaneous . | . . . Route ------- -11/Scrapyard -10/Materials (discovered 3 exits: [*Mat] / [*Min] / [*Sub]) -10/Subcaves History --------- Turn | Location | Event 8 | -11/Scrapyard | Discovered new exit (range 15) 61 | -11/Scrapyard | Entered Materials 91 | -10/Materials | Discovered new exit (range 13) 178 | -10/Materials | Discovered new exit (range 4) 310 | -10/Materials | Discovered new exit (range 7) 311 | -10/Materials | Build established: Mutant 318 | -10/Materials | Entered Subcaves 702 | -10/Subcaves | A swath of the cavern ceiling suddenly collapsed 858 | -10/Subcaves | A swath of the cavern ceiling suddenly collapsed 980 | -10/Subcaves | Shifting Twisted Machinery released Riot Gun 984 | -10/Subcaves | Shifting Twisted Machinery released Scrap Shield 1007 | -10/Subcaves | Core integrity fell below 50% 1021 | -10/Subcaves | Core integrity fell below 20% 1051 | -10/Subcaves | Lost 3 parts (1n2w) 1286 | -10/Subcaves | Lost 3 parts (1p1n1w) 1584 | -10/Subcaves | Learned location of Zion (-6) 1759 | -10/Subcaves | Destroyed by S4-29N(R) with Subdweller Laser Last Messages --------------- 01257_ 1J-IAQ(R) destroyed. 01260_ 7U-35C(R) destroyed. 01264_ Acquired 43 matter. 01267_ Acquired Lgt. Cannon. 01269_ Acquired 25 matter. 01271_ Acquired Sub. Power Source. 01451_ System corrupted: Heat flow error (+180). 01495_ System corrupted: Energy discharge (-28). 01555_ System corrupted: Energy discharge (-33). 01584_ Acquired derelict log, extracted data. World map updated: -6/Zion. 01597_ Dropped Assault Rifle. 01597_ Acquired Battle Cannon. 01602_ Acquired Hvy. Battle Rifle. 01607_ QV-VQU(O) knocked back. 01612_ Acquired 4 matter. 01626_ System corrupted: Matter fused (-4). 01641_ Slammed into QV-VQU(O). 01705_ System corrupted: Heat flow error (+159). 01756_ RKZ93X0L